fUSD/lending_fUSD_20251006
["ID","MTS","AMOUNT","RATE_DAILY","PERIOD"]
[389638342,1759763437914,-519.28351839,0.00015,2]
[389638343,1759763437926,-1266.96217575,0.00015,2]
[389638344,1759763438059,-498.92586001,0.00015,2]
[389638345,1759763438070,-472.054999,0.00015,2]
[389638346,1759763438082,-406.64253907,0.00015,2]
[389638347,1759763438093,-715.61401512,0.00015,2]
[389638348,1759763438105,-294.22488331,0.00015,2]
[389638349,1759763438116,-5631.22502711,0.00015,2]
[389638350,1759763438128,-69860.09760002,0.00015,2]
[389638351,1759763438139,-2785.63913308,0.00015,2]
[389638352,1759763438158,-10734.40716334,0.00015,2]
[389638353,1759763438171,-78061.2649627,0.00015,2]
[389638354,1759763438181,-21708.60305798,0.00015,2]
[389638356,1759763438218,-1720.61193751,0.00015,2]
[389638436,1759763440080,-1600.0,0.00015,2]
[389638437,1759763440091,-1362.87809375,0.00015,2]
[389638438,1759763440101,-271.08783029,0.00015,2]
[389638439,1759763440113,-376.89229359,0.00015,2]
[389638440,1759763440127,-590.70084419,0.00015,2]
[389638441,1759763440138,-364.745945,0.00015,2]
[389638442,1759763440149,-6479.06348603,0.00015,2]
[389638443,1759763440160,-42117.40508138,0.00015,2]
[389638444,1759763440171,-899.84924188,0.00015,2]
[389638445,1759763440185,-370.621193,0.00015,2]
[389638446,1759763440196,-4997.06760809,0.00015,2]
[389638447,1759763440209,-1260.3,0.00015,2]
[389638448,1759763440263,-2224.19399079,0.00015,2]
[389638449,1759763440275,-1758.01030183,0.00015,2]
[389638450,1759763440287,-374.10306952,0.00015,2]
[389638451,1759763440299,-817.68834929,0.00015,2]
[389638452,1759763440311,-3125.49190937,0.00015,2]
[389638453,1759763440323,-2450.08099561,0.00015,2]
[389638454,1759763440335,-5652.26343475,0.00015,2]
[389638455,1759763440347,-19992.23504328,0.00015,2]
[389638464,1759763440510,-604.74040783,0.00015,2]
[389638466,1759763440811,-329.0207687,0.00015,2]
[389638467,1759763440826,-2172.95400006,0.00015,2]
[389638468,1759763440837,-614.9931835,0.00015,2]
[389638469,1759763440848,-1156.17215268,0.00015,2]
[389638475,1759763442932,-5014.92,0.00014999,2]
[389638476,1759763442942,-11784.81358036,0.00015,2]
[389638477,1759763442986,-5136.07367571,0.00015,2]
[389638478,1759763443046,-287.02540688,0.00015,2]
[389638479,1759763443099,-637.4946501,0.00015,2]
[389638480,1759763443111,-3095.74817737,0.00015,2]
[389638490,1759763446000,-160433.67141609,0.00015,2]
[389638491,1759763446011,-1392.24557697,0.00015,2]
[389638492,1759763446066,-4711.00600858,0.00015,2]
[389638493,1759763446078,-1237.60144288,0.00015,2]
[389638494,1759763446089,-5300.00652498,0.00015,2]
[389638495,1759763446100,-460.91711393,0.00015,2]
[389640849,1759764230384,168.8,6.889e-05,2]
[389640853,1759764325169,649.76859337,0.000108,2]
[389640854,1759764347299,674.0,0.00011897,2]
[389640870,1759764365656,2615.60484313,0.00011,2]
[389640871,1759764365677,1633.83991159,0.00011,2]
[389640875,1759764439784,931.66259669,0.00010781,7]
[389640889,1759764520184,517.33392754,0.0001,2]
[389640891,1759764561161,-150.0,0.000129,2]
[389640892,1759764561184,-2000.0,0.00013233,2]
[389640893,1759764561206,-2000.0,0.00013468,2]
[389640894,1759764561232,-173.20378714,0.00013468,2]
[389640896,1759764615606,166.02869888,1e-08,14]
[389640920,1759764632214,-1826.79621286,0.00013468,2]
[389640922,1759764632224,-1313.56408134,0.00013468,2]
[389640924,1759764632238,-300.0,0.00013565,2]
[389640926,1759764632248,-334.85544908,0.00013565,2]
[389640929,1759764632260,-865.14455092,0.00013565,2]
[389640931,1759764632270,-1274.46173628,0.00013566,2]
[389640933,1759764632283,-466.77034477,0.00013566,2]
[389640937,1759764632318,-816.0,0.00013566,2]
[389640939,1759764632331,-767.35981764,0.00013566,2]
[389640942,1759764632344,-8983.47810131,0.00013566,2]
[389640943,1759764632354,-4858.63559041,0.00013611,2]
[389640944,1759764632364,-270.21447361,0.00013611,2]
[389640945,1759764632375,-1942.86,0.00013618,2]
[389640946,1759764632385,-161.18,0.00013642,2]
[389640947,1759764632396,-666.0,0.00013667,3]
[389640948,1759764632406,-250.0,0.00013688,2]
[389640949,1759764632416,-151.0,0.00013697,2]
[389640950,1759764632427,-150.0,0.00013698,2]
[389640952,1759764632436,-500.0,0.00013699,2]
[389640954,1759764632448,-500.0,0.00013699,2]
[389640956,1759764632458,-500.0,0.00013699,2]
[389640958,1759764632468,-500.0,0.00013699,2]
[389640960,1759764632478,-500.0,0.00013699,2]
[389640962,1759764632488,-500.0,0.00013699,2]
[389640964,1759764632498,-500.0,0.00013699,2]
[389640966,1759764632509,-500.0,0.00013699,2]
[389640968,1759764632519,-500.0,0.00013699,2]
[389640970,1759764632529,-530.18690734,0.00013699,2]
[389640972,1759764632539,-500.0,0.00013699,2]
[389640974,1759764632549,-500.0,0.00013699,2]
[389640976,1759764632559,-110691.38261279,0.000137,2]
[389641007,1759764632854,-192572.77219055,0.000137,2]
[389641009,1759764632866,-4706.56422538,0.000137,2]
[389641011,1759764632877,-225.12,0.000137,2]
[389641013,1759764632888,-225.12,0.000137,2]
[389641015,1759764632899,-225.12,0.000137,2]
[389641018,1759764632909,-154.48826643,0.00013711,2]
[389641019,1759764632919,-168.8,0.00013779,2]
[389641022,1759764632929,-212.77,0.00013793,2]
[389641024,1759764632940,-1600.0,0.00013867,2]
[389641026,1759764632950,-4858.63559035,0.00013914,2]
[389641028,1759764632960,-688.15,0.00014021,2]
[389641030,1759764632970,-150.0,0.0001408,2]
[389641032,1759764632979,-225.12,0.00014124,2]
[389641034,1759764632989,-5565.01258165,0.00014134,2]
[389641036,1759764632999,-538.4762783,0.00014177,2]
[389641038,1759764633009,-2000.0,0.0001419,2]
[389641040,1759764633019,-4858.63559035,0.00014217,2]
[389641042,1759764633028,-225.12,0.00014232,2]
[389641044,1759764633038,-200.0,0.00014234,2]
[389641046,1759764633048,-151.0,0.00014234,2]
[389641048,1759764633058,-151.0,0.00014234,2]
[389641050,1759764633068,-151.0,0.00014234,2]
[389641052,1759764633078,-151.0,0.00014234,2]
[389641054,1759764633088,-151.0,0.00014234,2]
[389641056,1759764633098,-151.0,0.00014234,2]
[389641058,1759764633107,-200.0,0.00014234,2]
[389641060,1759764633125,-151.0,0.00014234,2]
[389641062,1759764633137,-151.0,0.00014234,2]
[389641064,1759764633147,-151.0,0.00014234,2]
[389641065,1759764633158,-151.0,0.00014234,2]
[389641067,1759764633168,-151.0,0.00014234,2]
[389641069,1759764633179,-285.32796994,0.00014234,2]
[389641070,1759764633190,-151.0,0.00014234,2]
[389641072,1759764633201,-151.0,0.00014234,2]
[389641073,1759764633211,-151.0,0.00014234,2]
[389641075,1759764633220,-151.0,0.00014234,2]
[389641076,1759764633231,-151.0,0.00014234,2]
[389641078,1759764633246,-151.0,0.00014234,2]
[389641080,1759764633256,-151.0,0.00014234,2]
[389641082,1759764633267,-151.0,0.00014234,2]
[389641083,1759764633277,-151.0,0.00014234,2]
[389641085,1759764633287,-151.0,0.00014234,2]
[389641086,1759764633299,-151.0,0.00014234,2]
[389641087,1759764633308,-151.0,0.00014234,2]
[389641088,1759764633319,-151.0,0.00014234,2]
[389641089,1759764633329,-151.0,0.00014234,2]
[389641090,1759764633339,-151.0,0.00014234,2]
[389641091,1759764633349,-200.0,0.00014234,2]
[389641092,1759764633359,-151.0,0.00014234,2]
[389641093,1759764633369,-151.0,0.00014234,2]
[389641094,1759764633381,-151.0,0.00014234,2]
[389641095,1759764633391,-151.0,0.00014234,2]
[389641096,1759764633403,-151.0,0.00014234,2]
[389641097,1759764633413,-151.0,0.00014234,2]
[389641098,1759764633423,-151.0,0.00014234,2]
[389641099,1759764633432,-151.0,0.00014234,2]
[389641100,1759764633445,-151.0,0.00014234,2]
[389641101,1759764633455,-151.0,0.00014234,2]
[389641102,1759764633466,-151.0,0.00014234,2]
[389641103,1759764633476,-151.0,0.00014234,2]
[389641104,1759764633486,-151.0,0.00014234,2]
[389641105,1759764633496,-151.0,0.00014234,2]
[389641106,1759764633511,-151.0,0.00014234,2]
[389641107,1759764633522,-151.0,0.00014234,2]
[389641108,1759764633532,-156.12615864,0.00014234,2]
[389641109,1759764633543,-151.0,0.00014234,2]
[389641110,1759764633554,-151.0,0.00014234,2]
[389641111,1759764633564,-500.0,0.00014234,2]
[389641112,1759764633575,-2361.9,0.0001424,2]
[389641113,1759764633586,-182.872,0.00014242,2]
[389641114,1759764633597,-459.34509298,0.00014242,2]
[389641115,1759764633612,-2483.68190702,0.00014242,2]
[389641116,1759764633622,-26091.92,0.00014243,2]
[389641117,1759764633632,-270.21447354,0.00014314,2]
[389641118,1759764633642,-5565.01258165,0.00014379,2]
[389641119,1759764633653,-3540.72380439,0.0001439,2]
[389641120,1759764633664,-154.23,0.00014518,2]
[389641121,1759764633675,-4858.63559035,0.0001452,2]
[389641122,1759764633686,-207.48,0.00014582,2]
[389641123,1759764633700,-2200.0,0.000146,5]
[389641124,1759764633711,-5565.01258165,0.00014624,2]
[389641125,1759764633722,-168.0,0.00014672,2]
[389641126,1759764633733,-338.0,0.0001469,2]
[389641127,1759764633744,-4500.0,0.000147,5]
[389641128,1759764633754,-688.15,0.00014722,2]
[389641129,1759764633765,-840.11999999,0.00014748,2]
[389641130,1759764633776,-150.0,0.0001477,2]
[389641131,1759764633786,-150.0,0.0001477,2]
[389641132,1759764633797,-150.0,0.0001477,2]
[389641133,1759764633807,-150.0,0.0001477,2]
[389641134,1759764633818,-150.0,0.0001477,2]
[389641135,1759764633828,-150.0,0.0001477,2]
[389641136,1759764633839,-150.0,0.0001477,2]
[389641137,1759764633848,-150.0,0.0001477,2]
[389641138,1759764633858,-175.72,0.00014778,2]
[389641139,1759764633868,-200.0,0.00014782,2]
[389641140,1759764633879,-275.22888194,0.00014782,2]
[389641141,1759764633889,-6800.0,0.000148,5]
[389641142,1759764633900,-4858.63559035,0.00014823,2]
[389641143,1759764633910,-10526.61336217,0.0001485,2]
[389641144,1759764633922,-3174.31351,0.0001485,2]
[389641145,1759764633933,-420.0,0.00014868,2]
[389641146,1759764633945,-2204.50064323,0.00014869,2]
[389641147,1759764633958,-3360.51193842,0.00014869,2]
[389641148,1759764633968,-166.52463801,0.0001488,2]
[389641149,1759764633979,-281.8451126,0.000149,2]
[389641150,1759764633989,-423.8659535,0.000149,2]
[389641151,1759764633999,-1158.27252848,0.000149,2]
[389641152,1759764634009,-9000.0,0.000149,5]
[389641153,1759764634019,-798.1849571,0.000149,2]
[389641154,1759764634030,-338.0,0.00014915,2]
[389641155,1759764634040,-1680.0,0.00014922,2]
[389641156,1759764634051,-338.0,0.00014945,2]
[389641157,1759764634061,-184.52097641,0.00014964,2]
[389641158,1759764634071,-520.53253172,0.00014973,2]
[389641159,1759764634082,-167.17982377,0.00014973,2]
[389641160,1759764634093,-165.07679832,0.00014973,2]
[389641161,1759764634105,-156.0841444,0.00014973,2]
[389641162,1759764634116,-500.0,0.00014973,2]
[389641163,1759764634128,-500.0,0.00014973,2]
[389641164,1759764634138,-159.70394716,0.00014973,2]
[389641165,1759764634149,-500.0,0.00014973,2]
[389641166,1759764634159,-559.15340671,0.00014973,2]
[389641167,1759764634169,-500.0,0.00014973,2]
[389641168,1759764634180,-548.68064684,0.00014973,2]
[389641169,1759764634190,-500.0,0.00014973,2]
[389641170,1759764634200,-500.0,0.00014973,2]
[389641171,1759764634210,-500.0,0.00014973,2]
[389641172,1759764634220,-500.0,0.00014973,2]
[389641173,1759764634230,-500.0,0.00014973,2]
[389641174,1759764634245,-500.0,0.00014973,2]
[389641175,1759764634256,-500.0,0.00014973,2]
[389641176,1759764634266,-501.3878239,0.00014973,2]
[389641177,1759764634277,-500.0,0.00014973,2]
[389641178,1759764634288,-500.0,0.00014973,2]
[389641179,1759764634299,-503.1997225,0.00014973,2]
[389641180,1759764634310,-500.0,0.00014973,2]
[389641181,1759764634322,-500.0,0.00014973,2]
[389641182,1759764634333,-500.0,0.00014973,2]
[389641183,1759764634642,-500.0,0.00014973,2]
[389641184,1759764634652,-500.0,0.00014973,2]
[389641185,1759764634662,-500.0,0.00014973,2]
[389641186,1759764634671,-22569.72513721,0.0001498,3]
[389641187,1759764636793,-441.28847063,0.00013699,2]
[389641188,1759764636805,-474.50987965,0.00013699,2]
[389641189,1759764636817,-3368.95493528,0.00013699,2]
[389641190,1759764636829,-2062.40486279,0.0001498,3]
[389641191,1759764636839,-296.89317927,0.0001499,2]
[389641192,1759764636849,-613.56,0.00014991,2]
[389641193,1759764636859,-2391.61902264,0.00014999,2]
[389641194,1759764636916,-5799.74816757,0.00014999,2]
[389641195,1759764636927,-1248.6,0.00014999,2]
[389641196,1759764636939,-615.74197226,0.00014999,2]
[389641197,1759764636949,-1489.73748515,0.00014999,5]
[389641198,1759764636960,-1160.79793685,0.00014999,5]
[389641199,1759764636970,-340.125503,0.00014999,2]
[389641200,1759764636980,-340.125503,0.00014999,2]
[389641201,1759764636990,-151.0,0.00014999,2]
[389641202,1759764636999,-340.125503,0.00014999,2]
[389641203,1759764637009,-151.0,0.00014999,2]
[389641204,1759764637019,-151.0,0.00014999,2]
[389641205,1759764637029,-1423.820308,0.00014999,2]
[389641206,1759764637039,-340.125503,0.00014999,2]
[389641207,1759764637048,-290.110984,0.00014999,2]
[389641208,1759764637057,-151.0,0.00014999,2]
[389641209,1759764637067,-1423.820308,0.00014999,2]
[389641210,1759764637076,-151.0,0.00014999,2]
[389641211,1759764637085,-1423.820308,0.00014999,2]
[389641212,1759764637095,-151.0,0.00014999,2]
[389641213,1759764637105,-151.0,0.00014999,2]
[389641214,1759764637114,-1423.820308,0.00014999,2]
[389641215,1759764637124,-151.672178,0.00014999,2]
[389641216,1759764637134,-151.192311,0.00014999,2]
[389641217,1759764637144,-289.324812,0.00014999,2]
[389641218,1759764637153,-151.0,0.00014999,2]
[389641219,1759764637163,-102268.63108476,0.00015,2]
[389641220,1759764637171,-186.0,0.00015,3]
[389641221,1759764637181,-323930.06276605,0.00015,2]
[389641222,1759764637202,-1475.02471317,0.00015,2]
[389641223,1759764637213,-1247.27999994,0.00015,2]
[389641224,1759764637237,-23408.58582518,0.00015,2]
[389641225,1759764637251,-43963.60416049,0.00015,2]
[389641226,1759764637262,-183187.08566999,0.00015,2]
[389641227,1759764637273,-1026.2531425,0.00015,2]
[389641229,1759764638212,-151.0,0.00014999,2]
[389641230,1759764638221,-289.324812,0.00014999,2]
[389641231,1759764638232,-151.0,0.00014999,2]
[389641232,1759764638245,-151.0,0.00014999,2]
[389641233,1759764638255,-1887.65279971,0.00015,2]
[389641234,1759764638267,-614.68697519,0.00015,2]
[389641235,1759764638280,-2738.57533887,0.00015,2]
[389641236,1759764638290,-4177.26027367,0.00015,2]
[389641237,1759764638302,-156178.71879462,0.00015,2]
[389641238,1759764638325,-5793.43,0.00015,2]
[389641239,1759764638336,-397.86000031,0.00015,2]
[389641240,1759764638348,-946.81894517,0.00015,2]
[389641241,1759764638359,-12863.81182763,0.00015,2]
[389641242,1759764638371,-122844.54089851,0.00015,2]
[389641243,1759764638380,-8014.9794694,0.00015,2]
[389641244,1759764638389,-2732.2348,0.00015,2]
[389641245,1759764638399,-26368.7026227,0.00015,2]
[389641246,1759764638408,-7210.96956,0.00015,2]
[389641247,1759764638418,-151.0,0.00015,2]
[389641248,1759764638427,-151.0,0.00015,2]
[389641249,1759764638437,-1686353.2309878,0.00015,2]
[389641250,1759764638449,-314.661343,0.00015,2]
[389641251,1759764638459,-151.0,0.00015,2]
[389641252,1759764638468,-314.661343,0.00015,2]
[389641253,1759764638478,-151.0,0.00015,2]
[389641254,1759764638488,-151.0,0.00015,2]
[389641255,1759764638497,-314.661343,0.00015,2]
[389641256,1759764638507,-151.0,0.00015,2]
[389641257,1759764638517,-314.661343,0.00015,2]
[389641258,1759764638527,-151.0,0.00015,2]
[389641259,1759764638536,-151.0,0.00015,2]
[389641263,1759764638599,-211.948056,0.00015,2]
[389641265,1759764638609,-151.0,0.00015,2]
[389641266,1759764638619,-151.0,0.00015,2]
[389641268,1759764638629,-151.0,0.00015,2]
[389641270,1759764638639,-151.0,0.00015,2]
[389641272,1759764638648,-151.0,0.00015,2]
[389641273,1759764638658,-2000.0,0.00015,2]
[389641275,1759764638667,-1795.957,0.00015,2]
[389641277,1759764638676,-153.986,0.00015,2]
[389641278,1759764638687,-151.0,0.00015,2]
[389641280,1759764638698,-151.0,0.00015,2]
[389641282,1759764638707,-19000.0,0.00015,30]
[389641284,1759764638716,-151.0,0.00015,2]
[389641286,1759764638726,-151.0,0.00015,2]
[389641287,1759764638735,-151.0,0.00015,2]
[389641289,1759764638744,-151.0,0.00015,2]
[389641291,1759764638754,-151.0,0.00015,2]
[389641293,1759764638763,-151.0,0.00015,2]
[389641295,1759764638773,-151.0,0.00015,2]
[389641296,1759764638782,-151.0,0.00015,2]
[389641298,1759764638794,-151.0,0.00015,2]
[389641300,1759764638804,-151.0,0.00015,2]
[389641301,1759764638813,-151.0,0.00015,2]
[389641303,1759764638823,-151.0,0.00015,2]
[389641305,1759764638833,-151.0,0.00015,2]
[389641307,1759764638842,-151.0,0.00015,2]
[389641309,1759764638852,-151.0,0.00015,2]
[389641311,1759764638862,-219.35340661,0.00015,2]
[389641312,1759764638872,-156.963683,0.00015,2]
[389641314,1759764638881,-151.0,0.00015,2]
[389641316,1759764638890,-151.0,0.00015,2]
[389641317,1759764638899,-314.926342,0.00015,2]
[389641319,1759764638909,-314.926342,0.00015,2]
[389641321,1759764638918,-151.0,0.00015,2]
[389641323,1759764638927,-152.999974,0.00015,2]
[389641325,1759764638937,-314.926342,0.00015,2]
[389641327,1759764638948,-314.926342,0.00015,2]
[389641329,1759764638957,-314.926342,0.00015,2]
[389641330,1759764638966,-314.926342,0.00015,2]
[389641332,1759764638976,-151.0,0.00015,2]
[389641334,1759764638986,-151.0,0.00015,2]
[389641336,1759764638996,-314.926342,0.00015,2]
[389641338,1759764639006,-314.926342,0.00015,2]
[389641339,1759764639015,-151.0,0.00015,2]
[389641341,1759764639025,-151.0,0.00015,2]
[389641343,1759764639034,-162.67279949,0.00015,2]
[389641345,1759764639044,-230.238772,0.00015,2]
[389641347,1759764639054,-230.238772,0.00015,2]
[389641349,1759764639063,-151.0,0.00015,2]
[389641351,1759764639073,-230.238772,0.00015,2]
[389641353,1759764639083,-230.238772,0.00015,2]
[389641355,1759764639092,-230.238772,0.00015,2]
[389641357,1759764639101,-230.238772,0.00015,2]
[389641358,1759764639110,-230.238772,0.00015,2]
[389641360,1759764639120,-230.238772,0.00015,2]
[389641362,1759764639129,-151.0,0.00015,2]
[389641364,1759764639140,-151.0,0.00015,2]
[389641366,1759764639150,-242.025964,0.00015,2]
[389641368,1759764639160,-151.0,0.00015,2]
[389641370,1759764639171,-151.0,0.00015,2]
[389641372,1759764639181,-151.0,0.00015,2]
[389641373,1759764639190,-151.0,0.00015,2]
[389641375,1759764639202,-151.0,0.00015,2]
[389641377,1759764639212,-151.0,0.00015,2]
[389641379,1759764639222,-151.0,0.00015,2]
[389641381,1759764639232,-151.0,0.00015,2]
[389641383,1759764639246,-151.0,0.00015,2]
[389641385,1759764639256,-151.0,0.00015,2]
[389641387,1759764639266,-151.0,0.00015,2]
[389641388,1759764639276,-151.0,0.00015,2]
[389641390,1759764639285,-151.0,0.00015,2]
[389641392,1759764639295,-151.0,0.00015,2]
[389641394,1759764639304,-151.0,0.00015,2]
[389641396,1759764639314,-151.0,0.00015,2]
[389641398,1759764639323,-151.0,0.00015,2]
[389641400,1759764639332,-151.0,0.00015,2]
[389641401,1759764639340,-151.0,0.00015,2]
[389641403,1759764639349,-151.0,0.00015,2]
[389641405,1759764639359,-151.0,0.00015,2]
[389641407,1759764639367,-151.0,0.00015,2]
[389641409,1759764639378,-151.0,0.00015,2]
[389641411,1759764639387,-151.0,0.00015,2]
[389641413,1759764639396,-200.137194,0.00015,2]
[389641415,1759764639405,-200.137194,0.00015,2]
[389641416,1759764639414,-200.137194,0.00015,2]
[389641418,1759764639423,-200.137194,0.00015,2]
[389641420,1759764639432,-200.137194,0.00015,2]
[389641422,1759764639441,-200.137194,0.00015,2]
[389641424,1759764639452,-151.0,0.00015,2]
[389641426,1759764639462,-200.137194,0.00015,2]
[389641428,1759764639471,-200.137194,0.00015,2]
[389641430,1759764639480,-151.0,0.00015,2]
[389641431,1759764639489,-154.735401,0.00015,2]
[389641433,1759764639498,-147933.68344381,0.00015,2]
[389641435,1759764639508,-261.39026,0.00015,2]
[389641437,1759764639517,-261.39026,0.00015,2]
[389641439,1759764639527,-261.39026,0.00015,2]
[389641441,1759764639536,-261.39026,0.00015,2]
[389641443,1759764639546,-151.0,0.00015,2]
[389641445,1759764639556,-151.0,0.00015,2]
[389641447,1759764639565,-261.39026,0.00015,2]
[389641448,1759764639574,-261.39026,0.00015,2]
[389641450,1759764639583,-257.45449,0.00015,2]
[389641452,1759764639593,-257.45449,0.00015,2]
[389641454,1759764639602,-261.39026,0.00015,2]
[389641456,1759764639612,-261.39026,0.00015,2]
[389641458,1759764639620,-257.45449,0.00015,2]
[389641460,1759764639629,-257.45449,0.00015,2]
[389641461,1759764639639,-257.45449,0.00015,2]
[389641463,1759764639648,-257.45449,0.00015,2]
[389641465,1759764639657,-257.45449,0.00015,2]
[389641467,1759764639667,-257.45449,0.00015,2]
[389641469,1759764639676,-151.0,0.00015,2]
[389641471,1759764639686,-151.0,0.00015,2]
[389641473,1759764639698,-151.0,0.00015,2]
[389641475,1759764639708,-164.050421,0.00015,2]
[389641477,1759764639716,-164.050421,0.00015,2]
[389641479,1759764639725,-164.050421,0.00015,2]
[389641480,1759764639734,-151.0,0.00015,2]
[389641482,1759764639744,-151.0,0.00015,2]
[389641484,1759764639753,-164.050421,0.00015,2]
[389641486,1759764639764,-254.558574,0.00015,2]
[389641488,1759764639774,-151.0,0.00015,2]
[389641490,1759764639784,-151.0,0.00015,2]
[389641492,1759764639794,-164.050421,0.00015,2]
[389641494,1759764639803,-164.050421,0.00015,2]
[389641496,1759764639813,-151.0,0.00015,2]
[389641497,1759764639822,-164.050421,0.00015,2]
[389641499,1759764639831,-151.0,0.00015,2]
[389641501,1759764639840,-164.050421,0.00015,2]
[389641503,1759764639850,-151.0,0.00015,2]
[389641505,1759764639859,-164.050421,0.00015,2]
[389641507,1759764639868,-164.050421,0.00015,2]
[389641509,1759764639878,-164.050421,0.00015,2]
[389641511,1759764639887,-164.050421,0.00015,2]
[389641512,1759764639897,-151.0,0.00015,2]
[389641514,1759764639907,-151.0,0.00015,2]
[389641516,1759764639916,-151.0,0.00015,2]
[389641518,1759764639925,-151.0,0.00015,2]
[389641520,1759764639934,-151.0,0.00015,2]
[389641522,1759764639944,-151.0,0.00015,2]
[389641524,1759764639954,-151.0,0.00015,2]
[389641526,1759764639963,-151.0,0.00015,2]
[389641527,1759764639972,-162.388332,0.00015,2]
[389641529,1759764639982,-151.0,0.00015,2]
[389641531,1759764639991,-151.0,0.00015,2]
[389641533,1759764640000,-151.0,0.00015,2]
[389641535,1759764640010,-151.0,0.00015,2]
[389641537,1759764640019,-151.0,0.00015,2]
[389641539,1759764640028,-767.853024,0.00015,2]
[389641540,1759764640037,-767.853024,0.00015,2]
[389641542,1759764640047,-767.853024,0.00015,2]
[389641544,1759764640057,-767.853024,0.00015,2]
[389641546,1759764640066,-767.853024,0.00015,2]
[389641548,1759764640075,-767.853024,0.00015,2]
[389641550,1759764640085,-767.853024,0.00015,2]
[389641552,1759764640095,-767.853024,0.00015,2]
[389641554,1759764640104,-268.696951,0.00015,2]
[389641556,1759764640114,-767.853024,0.00015,2]
[389641557,1759764640123,-268.696951,0.00015,2]
[389641559,1759764640133,-268.696951,0.00015,2]
[389641561,1759764640142,-767.853024,0.00015,2]
[389641563,1759764640152,-767.853024,0.00015,2]
[389641565,1759764640162,-767.853024,0.00015,2]
[389641567,1759764640172,-268.696951,0.00015,2]
[389641569,1759764640181,-268.696951,0.00015,2]
[389641571,1759764640191,-268.696951,0.00015,2]
[389641573,1759764640203,-268.696951,0.00015,2]
[389641574,1759764640214,-268.696951,0.00015,2]
[389641576,1759764640223,-268.696951,0.00015,2]
[389641578,1759764640235,-268.696951,0.00015,2]
[389641580,1759764640246,-268.696951,0.00015,2]
[389641582,1759764640255,-273.798653,0.00015,2]
[389641584,1759764640264,-268.696951,0.00015,2]
[389641586,1759764640274,-273.798653,0.00015,2]
[389641588,1759764640283,-273.798653,0.00015,2]
[389641589,1759764640292,-273.798653,0.00015,2]
[389641591,1759764640300,-151.0,0.00015,2]
[389641593,1759764640312,-273.798653,0.00015,2]
[389641595,1759764640320,-151.0,0.00015,2]
[389641597,1759764640329,-273.798653,0.00015,2]
[389641599,1759764640338,-151.0,0.00015,2]
[389641601,1759764640348,-273.798653,0.00015,2]
[389641603,1759764640356,-273.798653,0.00015,2]
[389641604,1759764640366,-151.0,0.00015,2]
[389641606,1759764640375,-273.798653,0.00015,2]
[389641608,1759764640385,-151.0,0.00015,2]
[389641610,1759764640393,-273.798653,0.00015,2]
[389641612,1759764640402,-273.798653,0.00015,2]
[389641614,1759764640411,-273.798653,0.00015,2]
[389641616,1759764640421,-176.380076,0.00015,2]